[Event "*** Titled Tuesday Blitz"]
[Site "Chess.com"]
[Date "2018.07.03"]
[Round "4"]
[White "Kurai"]
[Black "2Tilted"]
[Result "1-0"]
[WhiteElo "2455"]
[BlackElo "2298"]
[TimeControl "180+2"]
[EndTime "13:52:02 PDT"]
[Termination "Kurai won by resignation"]

1. d4 {[%clk 0:03:01.9]} 1... Nf6 {[%clk 0:03:00.3]} 2. c4 {[%clk 0:02:59.1]}
2... c5 {[%clk 0:03:01]} 3. d5 {[%clk 0:02:59.9]} 3... b5 {[%clk 0:03:01.4]} 4.
f3 {[%clk 0:02:58]} 4... Qa5+ {[%clk 0:02:57.1]} 5. Qd2 {[%clk 0:02:53.6]} 5...
Qxd2+ {[%clk 0:02:50.3]} 6. Nxd2 {[%clk 0:02:50.8]} 6... bxc4 {[%clk 0:02:51.4]}
7. e4 {[%clk 0:02:50.7]} 7... d6 {[%clk 0:02:52.3]} 8. Nxc4 {[%clk 0:02:46.3]}
8... g6 {[%clk 0:02:51.4]} 9. Bd2 {[%clk 0:02:45.8]} 9... Bg7 {[%clk 0:02:50.8]}
10. Bc3 {[%clk 0:02:46.9]} 10... Nbd7 {[%clk 0:02:50.4]} 11. Bd3 {[%clk
0:02:33.1]} 11... O-O {[%clk 0:02:50.7]} 12. Ne2 {[%clk 0:02:32.6]} 12... Ba6
{[%clk 0:02:50.5]} 13. O-O-O {[%clk 0:02:29.3]} 13... Nb6 {[%clk 0:02:41.7]} 14.
b3 {[%clk 0:02:25.6]} 14... Bxc4 {[%clk 0:02:34.8]} 15. bxc4 {[%clk 0:02:26.2]}
15... Rab8 {[%clk 0:02:29.3]} 16. e5 {[%clk 0:01:46.1]} 16... Ne8 {[%clk
0:02:14.4]} 17. f4 {[%clk 0:01:45.4]} 17... Na4 {[%clk 0:02:09]} 18. Ba1 {[%clk
0:01:45.4]} 18... dxe5 {[%clk 0:02:08.5]} 19. fxe5 {[%clk 0:01:46.1]} 19... Nc7
{[%clk 0:02:02.4]} 20. Rhe1 {[%clk 0:01:36.5]} 20... Na6 {[%clk 0:01:56.2]} 21.
Nc3 {[%clk 0:01:25]} 21... Bh6+ {[%clk 0:01:53.7]} 22. Rd2 {[%clk 0:01:12.9]}
22... Bxd2+ {[%clk 0:01:49.7]} 23. Kxd2 {[%clk 0:01:14.8]} 23... Nxc3 {[%clk
0:01:47.3]} 24. Bxc3 {[%clk 0:01:16.7]} 24... Nb4 {[%clk 0:01:37]} 25. Bb1
{[%clk 0:01:17.4]} 25... Rfd8 {[%clk 0:01:24.6]} 26. Kc1 {[%clk 0:01:14]} 26...
h5 {[%clk 0:01:09.1]} 27. a3 {[%clk 0:01:13.7]} 27... Na6 {[%clk 0:01:09.7]} 28.
Bc2 {[%clk 0:01:12.7]} 28... Nc7 {[%clk 0:01:09.9]} 29. h4 {[%clk 0:01:09.8]}
29... Na8 {[%clk 0:01:10.4]} 30. e6 {[%clk 0:01:05.6]} 30... Nb6 {[%clk
0:01:08.3]} 31. exf7+ {[%clk 0:01:03.3]} 31... Kxf7 {[%clk 0:01:08.6]} 32. Rf1+
{[%clk 0:01:04.5]} 32... Kg8 {[%clk 0:01:03.8]} 33. Bxg6 {[%clk 0:01:03.9]}
33... Nxc4 {[%clk 0:00:58.5]} 34. Bf7+ {[%clk 0:01:04.5]} 34... Kh7 {[%clk
0:00:57.4]} 35. Rf5 {[%clk 0:01:04.8]} 35... Rd6 {[%clk 0:00:29.7]} 36. Be6
{[%clk 0:01:05.8]} 36... Nxa3 {[%clk 0:00:18.7]} 37. Rxh5+ {[%clk 0:00:35.9]}
37... Kg6 {[%clk 0:00:19.1]} 38. Rg5+ {[%clk 0:00:35.7]} 38... Kh6 {[%clk
0:00:20.5]} 39. Bg7+ {[%clk 0:00:33]} 39... Kh7 {[%clk 0:00:21.7]} 40. Bf5+
{[%clk 0:00:34.3]} 40... Kg8 {[%clk 0:00:23.1]} 41. Bb2+ {[%clk 0:00:23.6]}
41... Kf8 {[%clk 0:00:24.1]} 42. Bxa3 {[%clk 0:00:25]} 42... Rxd5 {[%clk
0:00:25.5]} 43. g4 {[%clk 0:00:18.5]} 43... e6 {[%clk 0:00:21.2]} 44. Bxe6
{[%clk 0:00:19.1]} 44... Rxg5 {[%clk 0:00:22.1]} 45. hxg5 {[%clk 0:00:21]} 45...
Rb5 {[%clk 0:00:20.6]} 46. Bc4 {[%clk 0:00:20.8]} 46... Ra5 {[%clk 0:00:21.4]}
47. Bb2 {[%clk 0:00:22.2]} 47... Ra4 {[%clk 0:00:21.4]} 48. Be6 {[%clk
0:00:22.3]} 48... Ke7 {[%clk 0:00:21.1]} 49. Bf5 {[%clk 0:00:23.2]} 49... c4
{[%clk 0:00:22.5]} 50. g6 {[%clk 0:00:21.6]} 50... Ra6 {[%clk 0:00:18.3]} 51. g5
{[%clk 0:00:20.3]} 51... Rc6 {[%clk 0:00:16.1]} 52. Bf6+ {[%clk 0:00:20.9]}
52... Kf8 {[%clk 0:00:16.7]} 53. Kc2 {[%clk 0:00:21.4]} 53... a5 {[%clk
0:00:17.3]} 54. Bd7 {[%clk 0:00:19.7]} 54... Rc7 {[%clk 0:00:18]} 55. g7+ {[%clk
0:00:19.7]} 55... Kf7 {[%clk 0:00:18.9]} 56. Be6+ {[%clk 0:00:20.5]} 56... Kxe6
{[%clk 0:00:19.5]} 57. g8=Q+ {[%clk 0:00:21.6]} 57... Kd6 {[%clk 0:00:20.4]} 1-0

[Event "*** Titled Tuesday Blitz"]
[Site "Chess.com"]
[Date "2018.07.03"]
[Round "4"]
[White "Dr_Mortimer"]
[Black "rasmussvane"]
[Result "1/2-1/2"]
[WhiteElo "2807"]
[BlackElo "2574"]
[TimeControl "180+2"]
[EndTime "13:52:08 PDT"]
[Termination "Game drawn - insufficient material"]

1. e4 {[%clk 0:03:01.9]} 1... c6 {[%clk 0:03:00.5]} 2. Nc3 {[%clk 0:03:01]} 2...
d5 {[%clk 0:03:02.1]} 3. Nf3 {[%clk 0:03:02.4]} 3... dxe4 {[%clk 0:03:03.6]} 4.
Nxe4 {[%clk 0:03:03.3]} 4... Nf6 {[%clk 0:03:05.2]} 5. Qe2 {[%clk 0:03:04.8]}
5... Nxe4 {[%clk 0:03:06.3]} 6. Qxe4 {[%clk 0:03:06.7]} 6... Qa5 {[%clk
0:03:07.6]} 7. Bc4 {[%clk 0:02:44.6]} 7... Bf5 {[%clk 0:03:05.2]} 8. Qf4 {[%clk
0:02:44.4]} 8... e6 {[%clk 0:03:04.5]} 9. Bb3 {[%clk 0:02:36.9]} 9... Be7 {[%clk
0:03:03.2]} 10. O-O {[%clk 0:02:35.8]} 10... O-O {[%clk 0:02:59.1]} 11. d4
{[%clk 0:02:36.8]} 11... Nd7 {[%clk 0:02:58.9]} 12. Bd2 {[%clk 0:02:35.2]} 12...
Qd8 {[%clk 0:02:59.5]} 13. Rfe1 {[%clk 0:02:28.3]} 13... Re8 {[%clk 0:03:00]}
14. Rad1 {[%clk 0:02:20.4]} 14... Rc8 {[%clk 0:02:36.8]} 15. c4 {[%clk 0:02:15]}
15... Qc7 {[%clk 0:02:37.7]} 16. Qxc7 {[%clk 0:02:12.4]} 16... Rxc7 {[%clk
0:02:38.9]} 17. Bf4 {[%clk 0:02:14.1]} 17... Rcc8 {[%clk 0:02:39.9]} 18. h3
{[%clk 0:02:13.5]} 18... Bf6 {[%clk 0:02:31.4]} 19. g4 {[%clk 0:02:07.6]} 19...
Bg6 {[%clk 0:02:32.3]} 20. Bd6 {[%clk 0:01:53.9]} 20... Red8 {[%clk 0:02:19.8]}
21. Kg2 {[%clk 0:01:47.2]} 21... Nf8 {[%clk 0:01:30.4]} 22. c5 {[%clk
0:01:45.4]} 22... Re8 {[%clk 0:01:30.9]} 23. Bc4 {[%clk 0:01:39.9]} 23... Be7
{[%clk 0:01:29.6]} 24. Bxe7 {[%clk 0:01:37.7]} 24... Rxe7 {[%clk 0:01:30.5]} 25.
Ne5 {[%clk 0:01:38.8]} 25... Rd8 {[%clk 0:01:16.6]} 26. f4 {[%clk 0:01:38.9]}
26... Ree8 {[%clk 0:01:02.8]} 27. h4 {[%clk 0:01:35.5]} 27... h5 {[%clk
0:00:58.7]} 28. f5 {[%clk 0:01:31.6]} 28... exf5 {[%clk 0:00:58.4]} 29. gxf5
{[%clk 0:01:31.8]} 29... Bxf5 {[%clk 0:00:50.5]} 30. Nxf7 {[%clk 0:01:31.5]}
30... Kh7 {[%clk 0:00:52.1]} 31. Nxd8 {[%clk 0:01:30.1]} 31... Rxd8 {[%clk
0:00:54]} 32. Kg3 {[%clk 0:01:28.3]} 32... Ng6 {[%clk 0:00:53.1]} 33. d5 {[%clk
0:01:14.5]} 33... cxd5 {[%clk 0:00:52.2]} 34. Rd3 {[%clk 0:01:14.7]} 34... Bxd3
{[%clk 0:00:14.2]} 35. Bxd3 {[%clk 0:01:16.6]} 35... Rc8 {[%clk 0:00:10]} 36. b4
{[%clk 0:01:14.8]} 36... Rc6 {[%clk 0:00:10]} 37. Re7 {[%clk 0:01:13]} 37... a5
{[%clk 0:00:08.6]} 38. a3 {[%clk 0:01:09.6]} 38... axb4 {[%clk 0:00:09]} 39.
axb4 {[%clk 0:01:11.5]} 39... b6 {[%clk 0:00:10.4]} 40. Re5 {[%clk 0:01:00.2]}
40... bxc5 {[%clk 0:00:09.1]} 41. Rxh5+ {[%clk 0:00:58]} 41... Kg8 {[%clk
0:00:10]} 42. b5 {[%clk 0:00:50.5]} 42... Rd6 {[%clk 0:00:11]} 43. Rxd5 {[%clk
0:00:43.7]} 43... Rxd5 {[%clk 0:00:05.4]} 44. Bc4 {[%clk 0:00:44.9]} 44... Ne7
{[%clk 0:00:06.5]} 45. b6 {[%clk 0:00:46.2]} 45... Kf8 {[%clk 0:00:05.5]} 46.
Bxd5 {[%clk 0:00:46.6]} 46... Nf5+ {[%clk 0:00:06.3]} 47. Kf4 {[%clk 0:00:45.8]}
47... Nd6 {[%clk 0:00:07.3]} 48. Kg5 {[%clk 0:00:40.6]} 48... c4 {[%clk
0:00:07.1]} 49. Bxc4 {[%clk 0:00:37.5]} 49... Ne4+ {[%clk 0:00:08.4]} 50. Kf4
{[%clk 0:00:35.3]} 50... Nc5 {[%clk 0:00:10.3]} 51. Bd5 {[%clk 0:00:32]} 51...
g6 {[%clk 0:00:10.7]} 52. Ke5 {[%clk 0:00:20.3]} 52... Nd7+ {[%clk 0:00:10.9]}
53. Kf4 {[%clk 0:00:18.5]} 53... Nxb6 {[%clk 0:00:12.3]} 54. Kg5 {[%clk
0:00:19.7]} 54... Nxd5 {[%clk 0:00:12.5]} 55. Kxg6 {[%clk 0:00:21.3]} 55... Kg8
{[%clk 0:00:13.8]} 56. h5 {[%clk 0:00:22]} 56... Nf4+ {[%clk 0:00:15.1]} 57. Kg5
{[%clk 0:00:23.2]} 57... Nxh5 {[%clk 0:00:16.3]} 1/2-1/2

[Event "*** Titled Tuesday Blitz"]
[Site "Chess.com"]
[Date "2018.07.03"]
[Round "4"]
[White "MatthewG-p4p"]
[Black "Kimster98"]
[Result "0-1"]
[WhiteElo "2675"]
[BlackElo "2509"]
[TimeControl "180+2"]
[EndTime "13:52:08 PDT"]
[Termination "Kimster98 won by resignation"]

1. c4 {[%clk 0:03:01.1]} 1... e6 {[%clk 0:03:01]} 2. Nf3 {[%clk 0:03:01.9]} 2...
d5 {[%clk 0:03:02]} 3. d4 {[%clk 0:03:03.4]} 3... Nf6 {[%clk 0:03:03]} 4. Nc3
{[%clk 0:03:03.2]} 4... Bb4 {[%clk 0:03:03.8]} 5. Qc2 {[%clk 0:03:01.9]} 5...
dxc4 {[%clk 0:02:49.2]} 6. e3 {[%clk 0:03:01.9]} 6... b5 {[%clk 0:02:29.7]} 7.
a4 {[%clk 0:02:55.1]} 7... c6 {[%clk 0:02:30.3]} 8. Be2 {[%clk 0:02:52.5]} 8...
Bb7 {[%clk 0:02:28.4]} 9. O-O {[%clk 0:02:51.6]} 9... a6 {[%clk 0:02:29.1]} 10.
Ne5 {[%clk 0:02:51.2]} 10... Nbd7 {[%clk 0:02:26.4]} 11. f4 {[%clk 0:02:48.4]}
11... Nd5 {[%clk 0:01:59.2]} 12. Bf3 {[%clk 0:02:43.9]} 12... O-O {[%clk
0:01:56.6]} 13. Bd2 {[%clk 0:02:19.7]} 13... Qe7 {[%clk 0:01:36.2]} 14. e4
{[%clk 0:02:05.6]} 14... Nxc3 {[%clk 0:01:34.9]} 15. bxc3 {[%clk 0:02:00.4]}
15... Bd6 {[%clk 0:01:32]} 16. Ng4 {[%clk 0:02:01.5]} 16... f5 {[%clk
0:00:38.9]} 17. exf5 {[%clk 0:02:01.5]} 17... exf5 {[%clk 0:00:39.6]} 18. Ne5
{[%clk 0:02:02.3]} 18... Nxe5 {[%clk 0:00:39.8]} 19. fxe5 {[%clk 0:01:59.9]}
19... Bc7 {[%clk 0:00:40.7]} 20. Bc1 {[%clk 0:01:54.1]} 20... Qe6 {[%clk
0:00:41]} 21. Ba3 {[%clk 0:01:53.7]} 21... Rf7 {[%clk 0:00:40.2]} 22. Bc5 {[%clk
0:01:53.3]} 22... Rb8 {[%clk 0:00:36.6]} 23. Rfd1 {[%clk 0:01:51.6]} 23... Rd7
{[%clk 0:00:37.6]} 24. g3 {[%clk 0:01:44.5]} 24... g6 {[%clk 0:00:28.1]} 25. Qg2
{[%clk 0:01:44.1]} 25... Rbd8 {[%clk 0:00:19]} 26. axb5 {[%clk 0:01:42]} 26...
axb5 {[%clk 0:00:20.9]} 27. h4 {[%clk 0:01:29.8]} 27... h6 {[%clk 0:00:13.6]}
28. Ba3 {[%clk 0:01:25.3]} 28... Bb6 {[%clk 0:00:12.5]} 29. Kh2 {[%clk
0:01:25.4]} 29... Bc7 {[%clk 0:00:11.8]} 30. Re1 {[%clk 0:01:24.7]} 30... Kg7
{[%clk 0:00:11.9]} 31. Bb4 {[%clk 0:01:21.3]} 31... g5 {[%clk 0:00:12.3]} 32. g4
{[%clk 0:01:14.4]} 32... f4 {[%clk 0:00:11.1]} 33. Be4 {[%clk 0:01:14]} 33...
Rf7 {[%clk 0:00:11.6]} 34. Ra7 {[%clk 0:01:09]} 34... Bb8 {[%clk 0:00:12.4]} 35.
Raa1 {[%clk 0:01:08.5]} 35... Rdd7 {[%clk 0:00:06.8]} 36. Bc5 {[%clk 0:01:00.7]}
36... Rd8 {[%clk 0:00:06]} 37. Rg1 {[%clk 0:00:57.2]} 37... Re8 {[%clk
0:00:06.2]} 38. Bf5 {[%clk 0:00:53.4]} 38... Qd5 {[%clk 0:00:04.7]} 39. Qxd5
{[%clk 0:00:53.4]} 39... cxd5 {[%clk 0:00:06.6]} 40. Kg2 {[%clk 0:00:47.1]}
40... Bc8 {[%clk 0:00:05.4]} 41. Bxc8 {[%clk 0:00:41.2]} 41... f3+ {[%clk
0:00:06.8]} 42. Kf2 {[%clk 0:00:41.2]} 42... Rxc8 {[%clk 0:00:08.7]} 43. Ra8
{[%clk 0:00:41.9]} 43... Rg8 {[%clk 0:00:08.9]} 44. hxg5 {[%clk 0:00:41.4]}
44... hxg5 {[%clk 0:00:10]} 45. e6 {[%clk 0:00:41.7]} 45... Rf4 {[%clk
0:00:11.2]} 46. Re1 {[%clk 0:00:38.2]} 46... Re4 {[%clk 0:00:12.5]} 47. Rxe4
{[%clk 0:00:37.8]} 47... dxe4 {[%clk 0:00:14.4]} 48. Ra5 {[%clk 0:00:25.4]}
48... Rh8 {[%clk 0:00:14.4]} 49. d5 {[%clk 0:00:20.7]} 49... Rh2+ {[%clk
0:00:15]} 50. Kf1 {[%clk 0:00:21.9]} 50... Bg3 {[%clk 0:00:15]} 51. Ra7+ {[%clk
0:00:19.6]} 51... Kg6 {[%clk 0:00:16]} 52. e7 {[%clk 0:00:21]} 52... Rh8 {[%clk
0:00:14.9]} 53. Ra6+ {[%clk 0:00:21.1]} 53... Kf7 {[%clk 0:00:15.9]} 54. Re6
{[%clk 0:00:22.7]} 54... Ke8 {[%clk 0:00:14.7]} 55. Rxe4 {[%clk 0:00:22.9]}
55... Rh1+ {[%clk 0:00:15.3]} 56. Bg1 {[%clk 0:00:24.5]} 56... f2 {[%clk
0:00:16.8]} 0-1

[Event "*** Titled Tuesday Blitz"]
[Site "Chess.com"]
[Date "2018.07.03"]
[Round "4"]
[White "Arman_Hakemi"]
[Black "Aklanion"]
[Result "1-0"]
[WhiteElo "2287"]
[BlackElo "2060"]
[TimeControl "180+2"]
[EndTime "13:52:16 PDT"]
[Termination "Arman_Hakemi won by resignation"]

1. Nf3 {[%clk 0:03:01.9]} 1... d5 {[%clk 0:02:59.2]} 2. g3 {[%clk 0:03:02.8]}
2... Nc6 {[%clk 0:02:56.2]} 3. d4 {[%clk 0:03:03.3]} 3... Bf5 {[%clk 0:02:55.8]}
4. Bg2 {[%clk 0:03:04.1]} 4... e6 {[%clk 0:02:56.1]} 5. c4 {[%clk 0:03:04.9]}
5... Nf6 {[%clk 0:02:56.1]} 6. O-O {[%clk 0:03:05.4]} 6... Nb4 {[%clk
0:02:55.2]} 7. Na3 {[%clk 0:03:04]} 7... c6 {[%clk 0:02:54.4]} 8. Nh4 {[%clk
0:03:00.8]} 8... Bg6 {[%clk 0:02:55.2]} 9. Nxg6 {[%clk 0:03:01.7]} 9... hxg6
{[%clk 0:02:57.1]} 10. b3 {[%clk 0:03:01.3]} 10... Na6 {[%clk 0:02:46.6]} 11.
Bb2 {[%clk 0:02:58]} 11... Qa5 {[%clk 0:02:45.5]} 12. Nc2 {[%clk 0:02:57.1]}
12... dxc4 {[%clk 0:02:44.4]} 13. bxc4 {[%clk 0:02:56.3]} 13... Qh5 {[%clk
0:02:45.3]} 14. h3 {[%clk 0:02:57.2]} 14... Bd6 {[%clk 0:02:39.9]} 15. e4 {[%clk
0:02:57.6]} 15... Qxd1 {[%clk 0:02:34.9]} 16. Raxd1 {[%clk 0:02:58]} 16... Be7
{[%clk 0:02:31.5]} 17. Bc3 {[%clk 0:02:54]} 17... O-O {[%clk 0:02:30.5]} 18. Rb1
{[%clk 0:02:54.2]} 18... Rab8 {[%clk 0:02:28.9]} 19. Rb3 {[%clk 0:02:47.3]}
19... Rfc8 {[%clk 0:02:08.2]} 20. Rfb1 {[%clk 0:02:47.5]} 20... b6 {[%clk
0:02:09.6]} 21. e5 {[%clk 0:02:45.2]} 21... Nd7 {[%clk 0:02:10.4]} 22. Ne3
{[%clk 0:02:45.4]} 22... Nc7 {[%clk 0:02:05.6]} 23. a4 {[%clk 0:02:45.1]} 23...
Na6 {[%clk 0:01:53.8]} 24. f4 {[%clk 0:02:38.2]} 24... c5 {[%clk 0:01:17.8]} 25.
d5 {[%clk 0:02:37.2]} 25... Nb4 {[%clk 0:01:18.8]} 26. d6 {[%clk 0:02:36.7]}
26... Bd8 {[%clk 0:01:19.9]} 27. h4 {[%clk 0:02:24.7]} 27... a5 {[%clk
0:01:17.7]} 28. Rd1 {[%clk 0:02:23.9]} 28... f6 {[%clk 0:01:13.1]} 29. Be4
{[%clk 0:02:20.5]} 29... Kf7 {[%clk 0:01:13.3]} 30. Rb2 {[%clk 0:02:20.7]} 30...
Nc6 {[%clk 0:01:09.9]} 31. Bxc6 {[%clk 0:02:18.2]} 31... Rxc6 {[%clk 0:01:10.4]}
32. Kg2 {[%clk 0:02:17.8]} 32... Rbc8 {[%clk 0:01:09.1]} 33. Kf3 {[%clk
0:02:18.4]} 33... Nb8 {[%clk 0:00:51.5]} 34. Rh1 {[%clk 0:01:46.8]} 34... Na6
{[%clk 0:00:48.1]} 35. h5 {[%clk 0:01:47.8]} 35... gxh5 {[%clk 0:00:47.9]} 36.
Rxh5 {[%clk 0:01:48.6]} 36... Nb4 {[%clk 0:00:49.1]} 37. Rbh2 {[%clk 0:01:47.6]}
37... fxe5 {[%clk 0:00:21.7]} 38. fxe5 {[%clk 0:01:46.7]} 38... Nd3 {[%clk
0:00:18.1]} 39. Ke4 {[%clk 0:01:45.9]} 39... Nc1 {[%clk 0:00:16]} 40. Rh8 {[%clk
0:01:43.4]} 40... Bg5 {[%clk 0:00:15.7]} 41. d7 {[%clk 0:01:27]} 41... Rd8
{[%clk 0:00:12.7]} 42. Rxd8 {[%clk 0:01:26.2]} 42... Bxd8 {[%clk 0:00:14.6]} 43.
Rh8 {[%clk 0:01:24.5]} 43... Ke7 {[%clk 0:00:15.7]} 44. Rg8 {[%clk 0:01:25.6]}
44... Kxd7 {[%clk 0:00:16.9]} 45. Rxg7+ {[%clk 0:01:26.6]} 45... Kc8 {[%clk
0:00:18.4]} 46. Ng4 {[%clk 0:01:27.4]} 46... Ne2 {[%clk 0:00:15.5]} 47. Be1
{[%clk 0:01:28.5]} 47... Rc7 {[%clk 0:00:11.8]} 48. Rg8 {[%clk 0:01:29.3]} 48...
Rd7 {[%clk 0:00:12.6]} 49. Nf6 {[%clk 0:01:29.3]} 49... Rd4+ {[%clk 0:00:13.6]}
50. Ke3 {[%clk 0:01:30.6]} 50... Nc1 {[%clk 0:00:10.2]} 51. Ne4 {[%clk 0:01:30]}
51... Kd7 {[%clk 0:00:05.4]} 52. Rg7+ {[%clk 0:01:29.1]} 52... Kc6 {[%clk
0:00:05.6]} 53. Nd6 {[%clk 0:01:24.4]} 53... Rd3+ {[%clk 0:00:06.1]} 54. Kf2
{[%clk 0:01:21.5]} 54... Rxd6 {[%clk 0:00:04]} 55. exd6 {[%clk 0:01:22.4]} 55...
Kxd6 {[%clk 0:00:05.9]} 56. g4 {[%clk 0:01:22.8]} 56... Nd3+ {[%clk 0:00:05.8]}
57. Ke2 {[%clk 0:01:22.1]} 57... Ne5 {[%clk 0:00:06.3]} 58. Bg3 {[%clk
0:01:22.1]} 58... Bf6 {[%clk 0:00:05.7]} 59. Rg8 {[%clk 0:01:19.1]} 59... Ke7
{[%clk 0:00:05.8]} 60. Bxe5 {[%clk 0:01:20]} 60... Bxe5 {[%clk 0:00:07.4]} 61.
g5 {[%clk 0:01:21.1]} 61... Kf7 {[%clk 0:00:07.8]} 62. Rc8 {[%clk 0:01:22]}
62... Kg6 {[%clk 0:00:07.9]} 63. Rc6 {[%clk 0:01:23.2]} 63... Kxg5 {[%clk
0:00:08.5]} 64. Rxe6 {[%clk 0:01:24.3]} 64... Bc3 {[%clk 0:00:08.8]} 65. Rxb6
{[%clk 0:01:25]} 65... Kf5 {[%clk 0:00:09.5]} 66. Kd3 {[%clk 0:01:26.1]} 66...
Bb4 {[%clk 0:00:09.6]} 67. Rh6 {[%clk 0:01:27.2]} 67... Ke5 {[%clk 0:00:10.6]}
68. Rh5+ {[%clk 0:01:26.3]} 68... Kd6 {[%clk 0:00:11.6]} 69. Ke4 {[%clk
0:01:28.1]} 69... Kc6 {[%clk 0:00:13]} 70. Rh6+ {[%clk 0:01:29.3]} 70... Kd7
{[%clk 0:00:13.4]} 71. Kd5 {[%clk 0:01:30.9]} 71... Ke7 {[%clk 0:00:14.8]} 1-0

[Event "*** Titled Tuesday Blitz"]
[Site "Chess.com"]
[Date "2018.07.03"]
[Round "4"]
[White "Storne89"]
[Black "dolynachess"]
[Result "0-1"]
[WhiteElo "2576"]
[BlackElo "2416"]
[TimeControl "180+2"]
[EndTime "13:52:24 PDT"]
[Termination "dolynachess won by resignation"]

1. e4 {[%clk 0:03:01.9]} 1... d5 {[%clk 0:02:47.4]} 2. exd5 {[%clk 0:03:02.4]}
2... Qxd5 {[%clk 0:02:49]} 3. Nc3 {[%clk 0:03:04]} 3... Qd8 {[%clk 0:02:49.5]}
4. d4 {[%clk 0:03:05.5]} 4... Nf6 {[%clk 0:02:48.9]} 5. Nf3 {[%clk 0:03:06.7]}
5... Bg4 {[%clk 0:02:49.1]} 6. Bc4 {[%clk 0:03:07.1]} 6... e6 {[%clk 0:02:49.1]}
7. h3 {[%clk 0:03:06.6]} 7... Bxf3 {[%clk 0:02:49.7]} 8. Qxf3 {[%clk 0:03:07.5]}
8... c6 {[%clk 0:02:51.4]} 9. Be3 {[%clk 0:03:07]} 9... Nbd7 {[%clk 0:02:49.8]}
10. a3 {[%clk 0:03:04.4]} 10... Qa5 {[%clk 0:02:40]} 11. O-O {[%clk 0:03:02.3]}
11... Be7 {[%clk 0:02:39.6]} 12. b4 {[%clk 0:03:02.4]} 12... Qh5 {[%clk
0:02:37.8]} 13. Qxh5 {[%clk 0:02:59.1]} 13... Nxh5 {[%clk 0:02:37.7]} 14. Rab1
{[%clk 0:02:59.1]} 14... a6 {[%clk 0:02:35.1]} 15. a4 {[%clk 0:02:59.5]} 15...
b5 {[%clk 0:02:31.7]} 16. Be2 {[%clk 0:02:59]} 16... Nhf6 {[%clk 0:02:32.4]} 17.
a5 {[%clk 0:02:59.8]} 17... Nd5 {[%clk 0:02:28.8]} 18. Nxd5 {[%clk 0:03:01]}
18... cxd5 {[%clk 0:02:29.8]} 19. c3 {[%clk 0:03:02.4]} 19... Rc8 {[%clk
0:02:30.1]} 20. Bd2 {[%clk 0:03:03.6]} 20... Nf6 {[%clk 0:02:10.7]} 21. f3
{[%clk 0:03:01.7]} 21... Kd7 {[%clk 0:02:09.8]} 22. Bd3 {[%clk 0:03:02.3]} 22...
g6 {[%clk 0:02:08.5]} 23. g4 {[%clk 0:03:02.5]} 23... h5 {[%clk 0:02:07.7]} 24.
Kg2 {[%clk 0:03:03]} 24... Ne8 {[%clk 0:02:04.9]} 25. f4 {[%clk 0:02:58]} 25...
hxg4 {[%clk 0:01:58.4]} 26. hxg4 {[%clk 0:02:58.7]} 26... f5 {[%clk 0:01:55.2]}
27. Rh1 {[%clk 0:02:55.6]} 27... Nd6 {[%clk 0:01:55.1]} 28. Rxh8 {[%clk
0:02:49.5]} 28... Rxh8 {[%clk 0:01:55]} 29. g5 {[%clk 0:02:50.5]} 29... Ne4
{[%clk 0:01:47.6]} 30. Bxe4 {[%clk 0:02:51.2]} 30... dxe4 {[%clk 0:01:47]} 31.
Rc1 {[%clk 0:02:40.4]} 31... Bd6 {[%clk 0:01:32.9]} 32. Kg3 {[%clk 0:02:34.9]}
32... Rh5 {[%clk 0:01:27.8]} 33. c4 {[%clk 0:02:29.2]} 33... bxc4 {[%clk
0:01:27.2]} 34. Rxc4 {[%clk 0:02:31.1]} 34... Rxg5+ {[%clk 0:01:28.3]} 35. Kf2
{[%clk 0:02:32.7]} 35... Rg4 {[%clk 0:01:27.6]} 36. b5 {[%clk 0:02:21.4]} 36...
axb5 {[%clk 0:01:23.6]} 37. Rc2 {[%clk 0:02:22.5]} 37... Rh4 {[%clk 0:01:12.2]}
38. a6 {[%clk 0:02:19.9]} 38... Rh8 {[%clk 0:01:11.6]} 39. Ra2 {[%clk
0:01:50.8]} 39... Ra8 {[%clk 0:01:07.6]} 40. a7 {[%clk 0:01:51.2]} 40... Bc7
{[%clk 0:00:57.7]} 41. Ra6 {[%clk 0:01:52.2]} 41... Bd6 {[%clk 0:00:44.6]} 42.
Ke2 {[%clk 0:01:35.5]} 42... b4 {[%clk 0:00:39.2]} 43. Kd1 {[%clk 0:01:36.7]}
43... b3 {[%clk 0:00:20.9]} 44. Kc1 {[%clk 0:01:37.3]} 44... g5 {[%clk
0:00:19.9]} 45. fxg5 {[%clk 0:01:36.8]} 45... f4 {[%clk 0:00:21.2]} 46. g6
{[%clk 0:01:38.2]} 46... e3 {[%clk 0:00:21.7]} 47. g7 {[%clk 0:01:27.5]} 47...
exd2+ {[%clk 0:00:21.6]} 48. Kxd2 {[%clk 0:01:28.7]} 48... b2 {[%clk 0:00:21.6]}
49. Kc2 {[%clk 0:01:30]} 49... e5 {[%clk 0:00:12]} 50. d5 {[%clk 0:01:25.9]}
50... e4 {[%clk 0:00:09.9]} 51. g8=Q {[%clk 0:01:25.9]} 51... Rxg8 {[%clk
0:00:11.2]} 52. a8=Q {[%clk 0:01:27.8]} 52... Rxa8 {[%clk 0:00:11.2]} 53. Rxa8
{[%clk 0:01:29.7]} 53... Be5 {[%clk 0:00:12.1]} 54. Ra4 {[%clk 0:00:35.1]} 54...
e3 {[%clk 0:00:11]} 55. Rb4 {[%clk 0:00:27.9]} 55... f3 {[%clk 0:00:05.6]} 56.
Kd3 {[%clk 0:00:27.7]} 56... e2 {[%clk 0:00:04.6]} 57. Rb7+ {[%clk 0:00:22.1]}
57... Kc8 {[%clk 0:00:02.3]} 58. Kd2 {[%clk 0:00:24]} 58... Kxb7 {[%clk
0:00:02.3]} 59. d6 {[%clk 0:00:25.5]} 59... Bxd6 {[%clk 0:00:02.4]} 0-1